{"text_format":"1","workbook":"xlsx","n_sheets":2,"sheets":["Home","Daily"],"not_rendered":{"charts":0,"images":5,"macros":1,"external_links":0,"defined_names":1,"comments":0,"pivot_tables":0},"unopened":[],"bounds":{"document_bytes":16777216,"sheet_cells":100000,"rows_first":2000,"rows_last":500,"rows_between":2000,"halvings":0,"cell_chars":16384,"cell_head_chars":4096},"cells_cut":0,"cells_raw":0,"read":"whole","date_system":"1900"}

{"sheet":"Home","index":0,"n_rows":14,"n_cols":6,"rows_kept":14,"cut":false,"hidden":false,"merged":[[0,2,2,5],[12,2,12,4],[7,2,11,2],[7,3,9,3],[3,2,6,2],[3,3,4,3]]}
[null,null,"تقرير يومى ( مركز لوجيستى بورتوفيق )"]
[]
[]
[null,null,"وارد ( 46 )","بورتوفيق","شهادات تم التقديم"]
[null,null,null,null,"شهادات مسجلة ( 46 )"]
[null,null,null,"م.ح بورتوفيق","شهادات مسجلة ( 46 )"]
[null,null,null,"ميناء الزيتيات","شهادات مسجلة ( 46 )"]
[null,null,"صادر ( 46 )","بورتوفيق","صادر نهائي"]
[null,null,null,null,"صادر سماح مؤقت"]
[null,null,null,null,"إعادة تصدير"]
[null,null,null,"م.ح بورتوفيق","صادر نهائي"]
[null,null,null,"ميناء الزيتيات","صادر نهائي"]
[null,null,"تاريخ اليوم"]
[null,null,null,null,null,"ـــــــــــــــــــــــــــــــــــــ"]

{"sheet":"Daily","index":1,"n_rows":46,"n_cols":15,"rows_kept":46,"cut":false,"hidden":false,"merged":[[0,0,0,3],[1,0,1,1],[1,4,1,6],[0,4,0,8]]}
["وارد ( 46 )",null,null,null,"صادر ( 46 )",null,null,null,null,null,null,null,null,"2024-02-18",{"$f":"MATCH(N1,DailyP[[#All],[تاريخ اليوم]],0)","v":43}]
["بورتوفيق",null,"م.ح بورتوفيق","ميناء الزيتيات","بورتوفيق",null,null,"م.ح بورتوفيق","ميناء الزيتيات"]
["شهادات تم التقديم","شهادات مسجلة ( 46 )","شهادات مسجلة ( 46 )2","شهادات مسجلة ( 46 )3","صادر نهائي","صادر سماح مؤقت","إعادة تصدير","صادر نهائي2","صادر نهائي3","تاريخ اليوم","الشهر"]
[73,28,"ـــــــــــــــــــــــــــــــــــــ","ـــــــــــــــــــــــــــــــــــــ","ـــــــــــــــــــــــــــــــــــــ","ـــــــــــــــــــــــــــــــــــــ",6,1,"ـــــــــــــــــــــــــــــــــــــ","2024-01-01",{"$f":"TEXT(J4,\"mmmm\")","v":"يناير"}]
[158,132,2,"ـــــــــــــــــــــــــــــــــــــ","ـــــــــــــــــــــــــــــــــــــ",1,1,1,3,"2024-01-02","يناير"]
[294,186,4,"ـــــــــــــــــــــــــــــــــــــ","ـــــــــــــــــــــــــــــــــــــ","ـــــــــــــــــــــــــــــــــــــ","ـــــــــــــــــــــــــــــــــــــ",2,"ـــــــــــــــــــــــــــــــــــــ","2024-01-03","يناير"]
[464,226,9,"ـــــــــــــــــــــــــــــــــــــ","ـــــــــــــــــــــــــــــــــــــ",1,1,"ـــــــــــــــــــــــــــــــــــــ","ـــــــــــــــــــــــــــــــــــــ","2024-01-04","يناير"]
["ـــــــــــــــــــــــــــــــــــــ",13,"ـــــــــــــــــــــــــــــــــــــ","ـــــــــــــــــــــــــــــــــــــ","ـــــــــــــــــــــــــــــــــــــ","ـــــــــــــــــــــــــــــــــــــ","ـــــــــــــــــــــــــــــــــــــ","ـــــــــــــــــــــــــــــــــــــ","ـــــــــــــــــــــــــــــــــــــ","2024-01-05","يناير"]
[311,144,4,"ـــــــــــــــــــــــــــــــــــــ","ـــــــــــــــــــــــــــــــــــــ","ـــــــــــــــــــــــــــــــــــــ","ـــــــــــــــــــــــــــــــــــــ",1,"ـــــــــــــــــــــــــــــــــــــ","2024-01-06","يناير"]
[473,157,6,"ـــــــــــــــــــــــــــــــــــــ","ـــــــــــــــــــــــــــــــــــــ",2,"ـــــــــــــــــــــــــــــــــــــ",2,1,"2024-01-08","يناير"]
[487,104,5,"ـــــــــــــــــــــــــــــــــــــ","ـــــــــــــــــــــــــــــــــــــ",2,"ـــــــــــــــــــــــــــــــــــــ",1,1,"2024-01-09","يناير"]
[403,54,2,"ـــــــــــــــــــــــــــــــــــــ","ـــــــــــــــــــــــــــــــــــــ",4,1,"ـــــــــــــــــــــــــــــــــــــ",1,"2024-01-10","يناير"]
[307,34,8,1,"ـــــــــــــــــــــــــــــــــــــ",3,3,4,"ـــــــــــــــــــــــــــــــــــــ","2024-01-11","يناير"]
[195,57,5,"ـــــــــــــــــــــــــــــــــــــ","ـــــــــــــــــــــــــــــــــــــ",1,"ـــــــــــــــــــــــــــــــــــــ",1,"ـــــــــــــــــــــــــــــــــــــ","2024-01-13","يناير"]
[270,106,5,1,"ـــــــــــــــــــــــــــــــــــــ",1,2,1,1,"2024-01-14","يناير"]
[355,173,6,"ـــــــــــــــــــــــــــــــــــــ","ـــــــــــــــــــــــــــــــــــــ",2,3,"ـــــــــــــــــــــــــــــــــــــ",1,"2024-01-15","يناير"]
[407,93,12,"ـــــــــــــــــــــــــــــــــــــ","ـــــــــــــــــــــــــــــــــــــ",2,4,1,"ـــــــــــــــــــــــــــــــــــــ","2024-01-16","يناير"]
[433,87,5,"ـــــــــــــــــــــــــــــــــــــ","ـــــــــــــــــــــــــــــــــــــ",1,3,1,"ـــــــــــــــــــــــــــــــــــــ","2024-01-17","يناير"]
[467,113,11,"ـــــــــــــــــــــــــــــــــــــ","ـــــــــــــــــــــــــــــــــــــ",4,2,"ـــــــــــــــــــــــــــــــــــــ","ـــــــــــــــــــــــــــــــــــــ","2024-01-18","يناير"]
[573,152,2,"ـــــــــــــــــــــــــــــــــــــ","ـــــــــــــــــــــــــــــــــــــ",1,"ـــــــــــــــــــــــــــــــــــــ",2,"ـــــــــــــــــــــــــــــــــــــ","2024-01-20","يناير"]
[492,65,6,"ـــــــــــــــــــــــــــــــــــــ","ـــــــــــــــــــــــــــــــــــــ",1,"ـــــــــــــــــــــــــــــــــــــ",4,"ـــــــــــــــــــــــــــــــــــــ","2024-01-21","يناير"]
[348,55,5,"ـــــــــــــــــــــــــــــــــــــ","ـــــــــــــــــــــــــــــــــــــ",3,1,10,3,"2024-01-22","يناير"]
[348,55,5,"ـــــــــــــــــــــــــــــــــــــ","ـــــــــــــــــــــــــــــــــــــ",3,1,10,3,"2024-01-22","يناير"]
[223,43,12,"ـــــــــــــــــــــــــــــــــــــ","ـــــــــــــــــــــــــــــــــــــ","ـــــــــــــــــــــــــــــــــــــ","ـــــــــــــــــــــــــــــــــــــ","ـــــــــــــــــــــــــــــــــــــ","ـــــــــــــــــــــــــــــــــــــ","2024-01-23","يناير"]
[188,51,10,1,"ـــــــــــــــــــــــــــــــــــــ",1,3,3,"ـــــــــــــــــــــــــــــــــــــ","2024-01-24","يناير"]
[216,139,1,"ـــــــــــــــــــــــــــــــــــــ","ـــــــــــــــــــــــــــــــــــــ",2,1,"ـــــــــــــــــــــــــــــــــــــ","ـــــــــــــــــــــــــــــــــــــ","2024-01-27","يناير"]
[258,143,4,1,"ـــــــــــــــــــــــــــــــــــــ","ـــــــــــــــــــــــــــــــــــــ",1,1,2,"2024-01-28","يناير"]
[445,176,"ـــــــــــــــــــــــــــــــــــــ","ـــــــــــــــــــــــــــــــــــــ","ـــــــــــــــــــــــــــــــــــــ",3,1,1,"ـــــــــــــــــــــــــــــــــــــ","2024-01-29","يناير"]
[477,148,7,"ـــــــــــــــــــــــــــــــــــــ","ـــــــــــــــــــــــــــــــــــــ",4,"ـــــــــــــــــــــــــــــــــــــ",3,"ـــــــــــــــــــــــــــــــــــــ","2024-01-30","يناير"]
[550,97,9,"ـــــــــــــــــــــــــــــــــــــ","ـــــــــــــــــــــــــــــــــــــ",6,"ـــــــــــــــــــــــــــــــــــــ",1,"ـــــــــــــــــــــــــــــــــــــ","2024-01-31","يناير"]
[598,107,9,"ـــــــــــــــــــــــــــــــــــــ","ـــــــــــــــــــــــــــــــــــــ",3,"ـــــــــــــــــــــــــــــــــــــ","ـــــــــــــــــــــــــــــــــــــ","ـــــــــــــــــــــــــــــــــــــ","2024-02-01","فبراير"]
[408,56,5,"ـــــــــــــــــــــــــــــــــــــ","ـــــــــــــــــــــــــــــــــــــ",2,"ـــــــــــــــــــــــــــــــــــــ",2,"ـــــــــــــــــــــــــــــــــــــ","2024-02-03","فبراير"]
[355,78,8,"ـــــــــــــــــــــــــــــــــــــ","ـــــــــــــــــــــــــــــــــــــ",2,3,1,2,"2024-02-04","فبراير"]
[361,77,4,"ـــــــــــــــــــــــــــــــــــــ","ـــــــــــــــــــــــــــــــــــــ",3,2,2,"ـــــــــــــــــــــــــــــــــــــ","2024-02-05","فبراير"]
[565,211,6,"ـــــــــــــــــــــــــــــــــــــ","ـــــــــــــــــــــــــــــــــــــ",8,1,2,"ـــــــــــــــــــــــــــــــــــــ","2024-02-06","فبراير"]
[502,182,9,"ـــــــــــــــــــــــــــــــــــــ","ـــــــــــــــــــــــــــــــــــــ",2,"ـــــــــــــــــــــــــــــــــــــ","ـــــــــــــــــــــــــــــــــــــ",3,"2024-02-07","فبراير"]
[534,117,13,2,"ـــــــــــــــــــــــــــــــــــــ",2,1,"ـــــــــــــــــــــــــــــــــــــ","ـــــــــــــــــــــــــــــــــــــ","2024-02-08","فبراير"]
[447,63,4,"ـــــــــــــــــــــــــــــــــــــ","ـــــــــــــــــــــــــــــــــــــ",2,"ـــــــــــــــــــــــــــــــــــــ",2,"ـــــــــــــــــــــــــــــــــــــ","2024-02-10","فبراير"]
[351,46,1,6,"ـــــــــــــــــــــــــــــــــــــ",6,"ـــــــــــــــــــــــــــــــــــــ","ـــــــــــــــــــــــــــــــــــــ","ـــــــــــــــــــــــــــــــــــــ","2024-02-11","فبراير"]
[288,41,6,"ـــــــــــــــــــــــــــــــــــــ","ـــــــــــــــــــــــــــــــــــــ",5,"ـــــــــــــــــــــــــــــــــــــ",1,2,"2024-02-12","فبراير"]
[275,69,9,"ـــــــــــــــــــــــــــــــــــــ","ـــــــــــــــــــــــــــــــــــــ",2,1,1,1,"2024-02-13","فبراير"]
[226,46,6,"ـــــــــــــــــــــــــــــــــــــ",2,1,"ـــــــــــــــــــــــــــــــــــــ","ـــــــــــــــــــــــــــــــــــــ","ـــــــــــــــــــــــــــــــــــــ","2024-02-14","فبراير"]
[162,46,5,"ـــــــــــــــــــــــــــــــــــــ",1,2,"ـــــــــــــــــــــــــــــــــــــ",2,1,"2024-02-15","فبراير"]
[236,117,6,"ـــــــــــــــــــــــــــــــــــــ","ـــــــــــــــــــــــــــــــــــــ",3,"ـــــــــــــــــــــــــــــــــــــ",2,"ـــــــــــــــــــــــــــــــــــــ","2024-02-17","فبراير"]
[359,150,3,"ـــــــــــــــــــــــــــــــــــــ","ـــــــــــــــــــــــــــــــــــــ",1,"ـــــــــــــــــــــــــــــــــــــ","ـــــــــــــــــــــــــــــــــــــ","ـــــــــــــــــــــــــــــــــــــ","2024-02-18",{"$f":"TEXT(J45,\"mmmm\")","v":"فبراير"}]
[5,6,2,8,23,64,36,456,48,"2024-02-19",{"$f":"TEXT(J46,\"mmmm\")","v":"فبراير"}]